[Event "Titled Tuesday Blitz April 18 Early 2023"]
[White "Koutsin, Sergey"]
[Black "Horak, Martin"]
[WhiteFideId "14101483"]
[BlackFideId "367095"]
[WhiteElo "2381"]
[BlackElo "2091"]
[Result "1-0"]
[Round "08"]
[TimeControl "180+2"]
[Date "2023.04.18"]
[WhiteClock "0:00:19"]
[BlackClock "0:00:02"]

1. d4 {[%clk 0:03:00]}  Nf6 {[%clk 0:02:59]} 2. c4 {[%clk 0:03:00]}  e6 {[%clk 0:03:00]} 3. Nf3 {[%clk 0:03:00]}  b6 {[%clk 0:03:00]} 4. a3 {[%clk 0:03:00]}  Bb7 {[%clk 0:03:00]} 5. Nc3 {[%clk 0:03:00]}  d5 {[%clk 0:03:00]} 6. Bg5 {[%clk 0:02:59]}  Be7 {[%clk 0:03:00]} 7. e3 {[%clk 0:03:00]}  O-O {[%clk 0:02:59]} 8. Rc1 {[%clk 0:03:00]}  Nbd7 {[%clk 0:02:58]} 9. cxd5 {[%clk 0:03:00]}  exd5 {[%clk 0:02:55]} 10. Be2 {[%clk 0:02:59]}  a6 {[%clk 0:02:55]} 11. O-O {[%clk 0:02:58]}  h6 {[%clk 0:02:55]} 12. Bh4 {[%clk 0:02:57]}  Re8 {[%clk 0:02:52]} 13. b4 {[%clk 0:02:54]}  Bd6 {[%clk 0:02:39]} 14. Qb3 {[%clk 0:02:51]}  Qe7 {[%clk 0:02:25]} 15. Rc2 {[%clk 0:02:30]}  Rac8 {[%clk 0:02:13]} 16. Rfc1 {[%clk 0:02:27]}  g5 {[%clk 0:02:10]} 17. Bg3 {[%clk 0:02:26]}  Kg7 {[%clk 0:01:47]} 18. Nd2 {[%clk 0:02:23]}  h5 {[%clk 0:01:38]} 19. Bxd6 {[%clk 0:02:04]}  Qxd6 {[%clk 0:01:37]} 20. Bd3 {[%clk 0:01:56]}  Ng4 {[%clk 0:01:13]} 21. Nf1 {[%clk 0:01:55]}  Ndf6 {[%clk 0:01:07]} 22. Bf5 {[%clk 0:01:51]}  Rcd8 {[%clk 0:01:07]} 23. Ne2 {[%clk 0:01:09]}  Re7 {[%clk 0:01:02]} 24. a4 {[%clk 0:01:04]}  h4 {[%clk 0:01:00]} 25. h3 {[%clk 0:01:00]}  Nh6 {[%clk 0:00:56]} 26. Bd3 {[%clk 0:00:57]}  Bc8 {[%clk 0:00:47]} 27. Rc3 {[%clk 0:00:55]}  Bb7 {[%clk 0:00:42]} 28. Qc2 {[%clk 0:00:54]}  Rdd7 {[%clk 0:00:36]} 29. b5 {[%clk 0:00:53]}  a5 {[%clk 0:00:35]} 30. Bf5 {[%clk 0:00:41]}  Nxf5 {[%clk 0:00:30]} 31. Qxf5 {[%clk 0:00:41]}  Kh6 {[%clk 0:00:27]} 32. Nh2 {[%clk 0:00:40]}  Qe6 {[%clk 0:00:24]} 33. Qxe6 {[%clk 0:00:30]}  fxe6 {[%clk 0:00:24]} 34. R1c2 {[%clk 0:00:29]}  Ne4 {[%clk 0:00:24]} 35. Rd3 {[%clk 0:00:27]}  Nf6 {[%clk 0:00:22]} 36. Nc1 {[%clk 0:00:26]}  Rg7 {[%clk 0:00:16]} 37. Rdc3 {[%clk 0:00:27]}  Kh7 {[%clk 0:00:15]} 38. Nd3 {[%clk 0:00:26]}  Rde7 {[%clk 0:00:12]} 39. Ne5 {[%clk 0:00:26]}  Kg8 {[%clk 0:00:12]} 40. f3 {[%clk 0:00:24]}  Kf8 {[%clk 0:00:12]} 41. Kf2 {[%clk 0:00:24]}  Ke8 {[%clk 0:00:12]} 42. Nhg4 {[%clk 0:00:22]}  Nxg4+ {[%clk 0:00:10]} 43. hxg4 {[%clk 0:00:22]}  Kd8 {[%clk 0:00:09]} 44. Rc1 {[%clk 0:00:22]}  Rh7 {[%clk 0:00:08]} 45. Rh1 {[%clk 0:00:23]}  Reg7 {[%clk 0:00:08]} 46. Rcc1 {[%clk 0:00:22]}  Bc8 {[%clk 0:00:06]} 47. Rh3 {[%clk 0:00:23]}  Re7 {[%clk 0:00:03]} 48. Nc6+ {[%clk 0:00:21]}  Ke8 {[%clk 0:00:03]} 49. Nxe7 {[%clk 0:00:21]}  Rxe7 {[%clk 0:00:04]} 50. g3 {[%clk 0:00:21]}  hxg3+ {[%clk 0:00:03]} 51. Kxg3 {[%clk 0:00:21]}  e5 {[%clk 0:00:02]} 52. dxe5 {[%clk 0:00:19]}  Rxe5 {[%clk 0:00:02]} 53. Rxc7 {[%clk 0:00:19]} 1-0


[Site "https://www.chess.com"]

[Event "Titled Tuesday Blitz April 18 Early 2023"]
[White "Begunov, Konstantin"]
[Black "Ljukin, Sergei"]
[WhiteFideId "4118510"]
[BlackFideId "14102200"]
[WhiteElo "2087"]
[BlackElo "2312"]
[Result "0-1"]
[Round "08"]
[TimeControl "180+2"]
[Date "2023.04.18"]
[WhiteClock "0:00:03"]
[BlackClock "0:00:09"]

1. d4 {[%clk 0:02:57]}  d5 {[%clk 0:02:59]} 2. c4 {[%clk 0:02:56]}  c6 {[%clk 0:02:59]} 3. Nc3 {[%clk 0:02:56]}  Nf6 {[%clk 0:02:59]} 4. cxd5 {[%clk 0:02:56]}  cxd5 {[%clk 0:03:00]} 5. Bf4 {[%clk 0:02:56]}  Nc6 {[%clk 0:03:00]} 6. e3 {[%clk 0:02:57]}  Bf5 {[%clk 0:03:00]} 7. Bb5 {[%clk 0:02:56]}  Rc8 {[%clk 0:02:40]} 8. Qa4 {[%clk 0:02:54]}  a6 {[%clk 0:02:37]} 9. Bxc6+ {[%clk 0:02:53]}  Rxc6 {[%clk 0:02:37]} 10. Nf3 {[%clk 0:02:53]}  b5 {[%clk 0:02:25]} 11. Qb3 {[%clk 0:02:35]}  e6 {[%clk 0:02:22]} 12. Ne5 {[%clk 0:02:35]}  Rc8 {[%clk 0:02:22]} 13. O-O {[%clk 0:02:30]}  Bd6 {[%clk 0:02:15]} 14. Rfc1 {[%clk 0:02:29]}  O-O {[%clk 0:02:14]} 15. Ne2 {[%clk 0:01:59]}  Nh5 {[%clk 0:02:05]} 16. a4 {[%clk 0:01:47]}  Nxf4 {[%clk 0:02:01]} 17. Nxf4 {[%clk 0:01:47]}  b4 {[%clk 0:01:53]} 18. Nfd3 {[%clk 0:01:28]}  a5 {[%clk 0:01:10]} 19. Rxc8 {[%clk 0:01:17]}  Qxc8 {[%clk 0:01:09]} 20. Rc1 {[%clk 0:01:18]}  Qb8 {[%clk 0:01:04]} 21. Nd7 {[%clk 0:01:10]}  Bxh2+ {[%clk 0:01:02]} 22. Kh1 {[%clk 0:01:08]}  Qd6 {[%clk 0:01:00]} 23. Nxf8 {[%clk 0:01:06]}  Kxf8 {[%clk 0:01:00]} 24. Rc8+ {[%clk 0:00:31]}  Ke7 {[%clk 0:00:59]} 25. f4 {[%clk 0:00:27]}  e5 {[%clk 0:00:55]} 26. Kxh2 {[%clk 0:00:15]}  Bxc8 {[%clk 0:00:53]} 27. dxe5 {[%clk 0:00:15]}  Qc6 {[%clk 0:00:45]} 28. Qd1 {[%clk 0:00:12]}  Bf5 {[%clk 0:00:43]} 29. Nf2 {[%clk 0:00:11]}  g6 {[%clk 0:00:30]} 30. Qf3 {[%clk 0:00:08]}  h5 {[%clk 0:00:25]} 31. Kg3 {[%clk 0:00:07]}  Ke6 {[%clk 0:00:23]} 32. Nh3 {[%clk 0:00:07]}  Bxh3 {[%clk 0:00:20]} 33. Kxh3 {[%clk 0:00:07]}  Qxa4 {[%clk 0:00:20]} 34. Kh4 {[%clk 0:00:08]}  Qc6 {[%clk 0:00:18]} 35. Kg5 {[%clk 0:00:07]}  a4 {[%clk 0:00:16]} 36. Qh3+ {[%clk 0:00:06]}  Ke7 {[%clk 0:00:16]} 37. f5 {[%clk 0:00:06]}  gxf5 {[%clk 0:00:14]} 38. Qxh5 {[%clk 0:00:06]}  a3 {[%clk 0:00:13]} 39. bxa3 {[%clk 0:00:05]}  bxa3 {[%clk 0:00:12]} 40. Qe2 {[%clk 0:00:06]}  Qc4 {[%clk 0:00:09]} 41. Qd2 {[%clk 0:00:04]}  Qg4+ {[%clk 0:00:09]} 42. Kh6 {[%clk 0:00:03]}  Qg6# {[%clk 0:00:09]} 0-1


[Site "https://www.chess.com"]

[Event "Titled Tuesday Blitz April 18 Early 2023"]
[White "Jaskolka, Tomasz"]
[Black "Koridze, Lile"]
[WhiteFideId "1170791"]
[BlackFideId "13612514"]
[WhiteElo "2155"]
[BlackElo "2047"]
[Result "0-1"]
[Round "08"]
[TimeControl "180+2"]
[Date "2023.04.18"]
[WhiteClock "0:00:04"]
[BlackClock "0:00:05"]

1. d4 {[%clk 0:03:00]}  Nf6 {[%clk 0:02:59]} 2. Bf4 {[%clk 0:03:00]}  d5 {[%clk 0:02:58]} 3. e3 {[%clk 0:03:00]}  c5 {[%clk 0:02:51]} 4. c3 {[%clk 0:03:01]}  Nc6 {[%clk 0:02:46]} 5. Nd2 {[%clk 0:03:01]}  e6 {[%clk 0:02:45]} 6. Ngf3 {[%clk 0:03:01]}  Bd6 {[%clk 0:02:45]} 7. Bg3 {[%clk 0:03:01]}  O-O {[%clk 0:02:45]} 8. Bd3 {[%clk 0:03:01]}  Qc7 {[%clk 0:02:45]} 9. dxc5 {[%clk 0:03:01]}  Bxg3 {[%clk 0:02:43]} 10. hxg3 {[%clk 0:03:02]}  h6 {[%clk 0:02:43]} 11. Qe2 {[%clk 0:02:50]}  a5 {[%clk 0:02:37]} 12. Bc2 {[%clk 0:02:26]}  Ne7 {[%clk 0:02:35]} 13. b4 {[%clk 0:01:58]}  b6 {[%clk 0:02:33]} 14. Nb3 {[%clk 0:01:56]}  bxc5 {[%clk 0:02:24]} 15. Nxc5 {[%clk 0:01:55]}  Nc6 {[%clk 0:02:22]} 16. Nd4 {[%clk 0:01:46]}  Ne5 {[%clk 0:02:09]} 17. O-O-O {[%clk 0:01:37]}  axb4 {[%clk 0:01:48]} 18. cxb4 {[%clk 0:01:36]}  Qa7 {[%clk 0:01:35]} 19. Bb3 {[%clk 0:01:23]}  Qa3+ {[%clk 0:01:35]} 20. Kb1 {[%clk 0:01:19]}  Qxb4 {[%clk 0:01:31]} 21. Nd3 {[%clk 0:01:20]}  Nxd3 {[%clk 0:01:30]} 22. Qxd3 {[%clk 0:01:20]}  Ne4 {[%clk 0:01:30]} 23. Rc1 {[%clk 0:00:59]}  Nxf2 {[%clk 0:01:20]} 24. Qc2 {[%clk 0:01:00]}  Nxh1 {[%clk 0:01:16]} 25. Rxh1 {[%clk 0:01:01]}  Bd7 {[%clk 0:01:09]} 26. g4 {[%clk 0:01:00]}  Rfc8 {[%clk 0:01:06]} 27. Qf2 {[%clk 0:00:58]}  Qc3 {[%clk 0:00:52]} 28. g5 {[%clk 0:00:51]}  Qd3+ {[%clk 0:00:45]} 29. Kb2 {[%clk 0:00:48]}  hxg5 {[%clk 0:00:26]} 30. g4 {[%clk 0:00:29]}  Qg6 {[%clk 0:00:15]} 31. Bc2 {[%clk 0:00:25]}  Rab8+ {[%clk 0:00:12]} 32. Kc1 {[%clk 0:00:13]}  Qf6 {[%clk 0:00:09]} 33. Qh2 {[%clk 0:00:13]}  g6 {[%clk 0:00:08]} 34. Kd1 {[%clk 0:00:09]}  e5 {[%clk 0:00:05]} 35. Ne2 {[%clk 0:00:08]}  Bxg4 {[%clk 0:00:04]} 36. Qg2 {[%clk 0:00:03]}  Bxe2+ {[%clk 0:00:04]} 37. Qxe2 {[%clk 0:00:04]}  e4 {[%clk 0:00:04]} 38. Rf1 {[%clk 0:00:04]}  Qa1+ {[%clk 0:00:04]} 39. Kd2 {[%clk 0:00:05]}  Qc3+ {[%clk 0:00:04]} 40. Kc1 {[%clk 0:00:05]}  Qb2+ {[%clk 0:00:04]} 41. Kd1 {[%clk 0:00:05]}  d4 {[%clk 0:00:02]} 42. exd4 {[%clk 0:00:05]}  Qxd4+ {[%clk 0:00:02]} 43. Ke1 {[%clk 0:00:05]}  Rc3 {[%clk 0:00:01]} 44. Qf2 {[%clk 0:00:03]}  Re3+ {[%clk 0:00:02]} 45. Qe2 {[%clk 0:00:03]}  Rxe2+ {[%clk 0:00:03]} 46. Kxe2 {[%clk 0:00:04]}  Qc3 {[%clk 0:00:03]} 47. Bxe4 {[%clk 0:00:04]}  Rb2+ {[%clk 0:00:04]} 48. Kd1 {[%clk 0:00:04]}  Qd2# {[%clk 0:00:05]} 0-1


[Site "https://www.chess.com"]

[Event "Titled Tuesday Blitz April 18 Early 2023"]
[White "Fuzesabonyilaci"]
[Black "Bettalli, Francesco"]
[BlackFideId "2816453"]
[WhiteElo "2339"]
[BlackElo "2216"]
[Result "0-1"]
[Round "08"]
[TimeControl "180+2"]
[Date "2023.04.18"]
[WhiteClock "0:00:04"]
[BlackClock "0:00:37"]

1. e4 {[%clk 0:03:00]}  g6 {[%clk 0:03:00]} 2. d4 {[%clk 0:02:58]}  Bg7 {[%clk 0:03:00]} 3. Nc3 {[%clk 0:02:58]}  c6 {[%clk 0:03:01]} 4. Nf3 {[%clk 0:02:57]}  d5 {[%clk 0:03:01]} 5. h3 {[%clk 0:02:57]}  dxe4 {[%clk 0:03:00]} 6. Nxe4 {[%clk 0:02:58]}  Nd7 {[%clk 0:03:01]} 7. Bc4 {[%clk 0:02:57]}  Ngf6 {[%clk 0:03:00]} 8. Nxf6+ {[%clk 0:02:56]}  Nxf6 {[%clk 0:03:01]} 9. Ne5 {[%clk 0:02:55]}  O-O {[%clk 0:03:01]} 10. O-O {[%clk 0:02:52]}  Nd5 {[%clk 0:02:57]} 11. Re1 {[%clk 0:02:46]}  Be6 {[%clk 0:02:56]} 12. Bb3 {[%clk 0:02:36]}  Nc7 {[%clk 0:02:53]} 13. c3 {[%clk 0:02:28]}  Bd5 {[%clk 0:02:49]} 14. c4 {[%clk 0:02:22]}  Be6 {[%clk 0:02:47]} 15. Bf4 {[%clk 0:02:21]}  Qc8 {[%clk 0:02:43]} 16. Qf3 {[%clk 0:02:19]}  f6 {[%clk 0:02:40]} 17. Nd3 {[%clk 0:02:15]}  Na6 {[%clk 0:02:25]} 18. Qe3 {[%clk 0:02:10]}  Bf7 {[%clk 0:02:25]} 19. Qxe7 {[%clk 0:02:07]}  Qf5 {[%clk 0:02:21]} 20. Qe4 {[%clk 0:02:01]}  Qxe4 {[%clk 0:02:16]} 21. Rxe4 {[%clk 0:02:02]}  f5 {[%clk 0:02:17]} 22. Re7 {[%clk 0:02:00]}  Bxd4 {[%clk 0:02:17]} 23. Rxb7 {[%clk 0:01:59]}  Rad8 {[%clk 0:02:16]} 24. Re1 {[%clk 0:01:40]}  Rfe8 {[%clk 0:02:11]} 25. Be5 {[%clk 0:01:36]}  Nc5 {[%clk 0:02:02]} 26. Nxc5 {[%clk 0:01:14]}  Bxc5 {[%clk 0:02:03]} 27. Kf1 {[%clk 0:01:08]}  Rd2 {[%clk 0:01:55]} 28. Bc3 {[%clk 0:01:07]}  Rxf2+ {[%clk 0:01:48]} 29. Kg1 {[%clk 0:00:59]}  Rxe1+ {[%clk 0:01:34]} 30. Bxe1 {[%clk 0:00:58]}  Rxb2+ {[%clk 0:01:35]} 31. Kh2 {[%clk 0:00:47]}  Rb1 {[%clk 0:01:19]} 32. Bc3 {[%clk 0:00:37]}  Bd6+ {[%clk 0:01:11]} 33. g3 {[%clk 0:00:37]}  h5 {[%clk 0:01:07]} 34. Rd7 {[%clk 0:00:33]}  Bf8 {[%clk 0:00:47]} 35. Rd8 {[%clk 0:00:28]}  c5 {[%clk 0:00:46]} 36. Be5 {[%clk 0:00:22]}  Re1 {[%clk 0:00:46]} 37. Bd6 {[%clk 0:00:16]}  Re8 {[%clk 0:00:46]} 38. Rd7 {[%clk 0:00:11]}  Re2+ {[%clk 0:00:43]} 39. Kg1 {[%clk 0:00:11]}  Bxd6 {[%clk 0:00:43]} 40. Rxd6 {[%clk 0:00:11]}  Re3 {[%clk 0:00:43]} 41. Kf2 {[%clk 0:00:11]}  Rc3 {[%clk 0:00:44]} 42. Rc6 {[%clk 0:00:10]}  h4 {[%clk 0:00:37]} 43. gxh4 {[%clk 0:00:09]}  Rxh3 {[%clk 0:00:38]} 44. Rxc5 {[%clk 0:00:09]}  Rxh4 {[%clk 0:00:39]} 45. Rc7 {[%clk 0:00:08]}  a5 {[%clk 0:00:38]} 46. c5 {[%clk 0:00:06]}  Bxb3 {[%clk 0:00:38]} 47. axb3 {[%clk 0:00:07]}  Rb4 {[%clk 0:00:37]} 48. Ra7 {[%clk 0:00:06]}  Rxb3 {[%clk 0:00:36]} 49. Rxa5 {[%clk 0:00:06]}  Rc3 {[%clk 0:00:36]} 50. Ra6 {[%clk 0:00:05]}  Kg7 {[%clk 0:00:36]} 51. Rc6 {[%clk 0:00:04]}  Kh6 {[%clk 0:00:37]} 52. Rc8 {[%clk 0:00:03]}  Kg5 {[%clk 0:00:37]} 53. c6 {[%clk 0:00:04]}  Kf4 {[%clk 0:00:37]} 54. c7 {[%clk 0:00:04]}  Rc2+ {[%clk 0:00:37]} 55. Ke1 {[%clk 0:00:04]}  g5 {[%clk 0:00:37]} 56. Kd1 {[%clk 0:00:04]}  Rc6 {[%clk 0:00:37]} 57. Ke2 {[%clk 0:00:04]}  g4 {[%clk 0:00:37]} 0-1


[Site "https://www.chess.com"]

[Event "Titled Tuesday Blitz April 18 Early 2023"]
[White "Mikhaylova, Irina"]
[Black "Kielinkei"]
[WhiteFideId "4109040"]
[WhiteElo "1975"]
[BlackElo "2453"]
[Result "1/2-1/2"]
[Round "08"]
[TimeControl "180+2"]
[Date "2023.04.18"]
[WhiteClock "0:00:20"]
[BlackClock "0:00:04"]

1. Nf3 {[%clk 0:03:00]}  c5 {[%clk 0:02:58]} 2. c4 {[%clk 0:03:01]}  Nc6 {[%clk 0:02:57]} 3. d4 {[%clk 0:03:00]}  cxd4 {[%clk 0:02:57]} 4. Nxd4 {[%clk 0:03:01]}  e6 {[%clk 0:02:53]} 5. e3 {[%clk 0:02:59]}  Nf6 {[%clk 0:02:50]} 6. Be2 {[%clk 0:02:59]}  Be7 {[%clk 0:02:39]} 7. O-O {[%clk 0:02:58]}  O-O {[%clk 0:02:40]} 8. Nc3 {[%clk 0:02:58]}  d5 {[%clk 0:02:36]} 9. cxd5 {[%clk 0:02:56]}  Nxd5 {[%clk 0:02:32]} 10. Nxd5 {[%clk 0:02:55]}  Qxd5 {[%clk 0:02:26]} 11. Bf3 {[%clk 0:02:53]}  Qd6 {[%clk 0:02:17]} 12. Nxc6 {[%clk 0:02:52]}  bxc6 {[%clk 0:02:14]} 13. Qxd6 {[%clk 0:02:50]}  Bxd6 {[%clk 0:02:15]} 14. Bxc6 {[%clk 0:02:50]}  Rb8 {[%clk 0:02:15]} 15. b3 {[%clk 0:02:34]}  Be5 {[%clk 0:02:12]} 16. Rb1 {[%clk 0:02:34]}  Ba6 {[%clk 0:02:13]} 17. Rd1 {[%clk 0:02:34]}  Rbc8 {[%clk 0:02:05]} 18. Be4 {[%clk 0:01:54]}  f5 {[%clk 0:02:02]} 19. Bf3 {[%clk 0:01:43]}  Rc2 {[%clk 0:01:56]} 20. Ba3 {[%clk 0:00:44]}  Rfc8 {[%clk 0:01:53]} 21. Bd6 {[%clk 0:00:35]}  Bf6 {[%clk 0:01:41]} 22. a3 {[%clk 0:00:30]}  g5 {[%clk 0:01:30]} 23. h3 {[%clk 0:00:28]}  Kf7 {[%clk 0:01:12]} 24. Bb4 {[%clk 0:00:28]}  R8c7 {[%clk 0:01:06]} 25. Rd2 {[%clk 0:00:28]}  Rxd2 {[%clk 0:00:59]} 26. Bxd2 {[%clk 0:00:28]}  Rc2 {[%clk 0:00:59]} 27. Bb4 {[%clk 0:00:28]}  Bc3 {[%clk 0:00:42]} 28. Bd1 {[%clk 0:00:20]}  Rb2 {[%clk 0:00:38]} 29. Rxb2 {[%clk 0:00:20]}  Bxb2 {[%clk 0:00:39]} 30. Bc2 {[%clk 0:00:20]}  Kf6 {[%clk 0:00:36]} 31. a4 {[%clk 0:00:19]}  Ke5 {[%clk 0:00:35]} 32. Bd2 {[%clk 0:00:19]}  Kd5 {[%clk 0:00:34]} 33. f3 {[%clk 0:00:19]}  h5 {[%clk 0:00:28]} 34. Kf2 {[%clk 0:00:20]}  h4 {[%clk 0:00:27]} 35. Bd1 {[%clk 0:00:20]}  Kc5 {[%clk 0:00:26]} 36. Be2 {[%clk 0:00:19]}  Bb7 {[%clk 0:00:26]} 37. Bc4 {[%clk 0:00:19]}  Bc8 {[%clk 0:00:25]} 38. e4 {[%clk 0:00:19]}  Bf6 {[%clk 0:00:21]} 39. Be3+ {[%clk 0:00:19]}  Bd4 {[%clk 0:00:21]} 40. Ke2 {[%clk 0:00:19]}  Bxe3 {[%clk 0:00:16]} 41. Kxe3 {[%clk 0:00:19]}  Bd7 {[%clk 0:00:15]} 42. exf5 {[%clk 0:00:19]}  exf5 {[%clk 0:00:16]} 43. f4 {[%clk 0:00:19]}  g4 {[%clk 0:00:13]} 44. hxg4 {[%clk 0:00:18]}  fxg4 {[%clk 0:00:14]} 45. Bd3 {[%clk 0:00:17]}  h3 {[%clk 0:00:13]} 46. gxh3 {[%clk 0:00:17]}  gxh3 {[%clk 0:00:14]} 47. Be4 {[%clk 0:00:18]}  Kb4 {[%clk 0:00:12]} 48. f5 {[%clk 0:00:18]}  Kxb3 {[%clk 0:00:11]} 49. f6 {[%clk 0:00:19]}  Be6 {[%clk 0:00:10]} 50. Kf4 {[%clk 0:00:18]}  h2 {[%clk 0:00:09]} 51. Kg3 {[%clk 0:00:18]}  Kc4 {[%clk 0:00:08]} 52. Kxh2 {[%clk 0:00:18]}  Kd4 {[%clk 0:00:09]} 53. Bb7 {[%clk 0:00:18]}  Ke5 {[%clk 0:00:09]} 54. f7 {[%clk 0:00:19]}  Bxf7 {[%clk 0:00:09]} 55. Kg3 {[%clk 0:00:19]}  Kd4 {[%clk 0:00:10]} 56. Kf2 {[%clk 0:00:20]}  Kc5 {[%clk 0:00:11]} 57. Ke3 {[%clk 0:00:20]}  Kb4 {[%clk 0:00:11]} 58. Kd2 {[%clk 0:00:20]}  Kxa4 {[%clk 0:00:11]} 59. Kc1 {[%clk 0:00:21]}  Ka3 {[%clk 0:00:11]} 60. Kd2 {[%clk 0:00:21]}  Kb2 {[%clk 0:00:10]} 61. Ba6 {[%clk 0:00:21]}  Bd5 {[%clk 0:00:08]} 62. Kd1 {[%clk 0:00:20]}  Bc6 {[%clk 0:00:05]} 63. Kd2 {[%clk 0:00:20]}  Ba4 {[%clk 0:00:06]} 64. Kd3 {[%clk 0:00:20]}  Kb3 {[%clk 0:00:06]} 65. Kd2 {[%clk 0:00:19]}  Bc6 {[%clk 0:00:06]} 66. Kc1 {[%clk 0:00:19]}  Ka2 {[%clk 0:00:07]} 67. Kc2 {[%clk 0:00:19]}  Bd5 {[%clk 0:00:07]} 68. Kc3 {[%clk 0:00:20]}  Be4 {[%clk 0:00:07]} 69. Kb4 {[%clk 0:00:19]}  Kb2 {[%clk 0:00:06]} 70. Ka5 {[%clk 0:00:19]}  Kb3 {[%clk 0:00:07]} 71. Bb5 {[%clk 0:00:19]}  Bb7 {[%clk 0:00:06]} 72. Ba6 {[%clk 0:00:20]}  Bc6 {[%clk 0:00:05]} 73. Bb5 {[%clk 0:00:20]}  Bb7 {[%clk 0:00:04]} 74. Ba6 {[%clk 0:00:21]}  Ba8 {[%clk 0:00:05]} 75. Bb5 {[%clk 0:00:20]}  Bb7 {[%clk 0:00:04]} 1/2-1/2


[Site "https://www.chess.com"]

[Event "Titled Tuesday Blitz April 18 Early 2023"]
[White "Melikhov, Evgeny V."]
[Black "Smietanska, Wiktoria"]
[WhiteFideId "4122046"]
[BlackFideId "21869359"]
[WhiteElo "2158"]
[BlackElo "1995"]
[Result "1-0"]
[Round "08"]
[TimeControl "180+2"]
[Date "2023.04.18"]
[WhiteClock "0:00:23"]
[BlackClock "0:00:01"]

1. d4 {[%clk 0:03:00]}  Nf6 {[%clk 0:02:59]} 2. c4 {[%clk 0:03:00]}  g6 {[%clk 0:03:00]} 3. Nc3 {[%clk 0:03:01]}  Bg7 {[%clk 0:03:00]} 4. e4 {[%clk 0:03:01]}  O-O {[%clk 0:03:01]} 5. Be3 {[%clk 0:03:00]}  d6 {[%clk 0:03:01]} 6. f3 {[%clk 0:03:00]}  e5 {[%clk 0:03:01]} 7. d5 {[%clk 0:03:01]}  Nh5 {[%clk 0:02:57]} 8. Qd2 {[%clk 0:03:00]}  f5 {[%clk 0:02:57]} 9. O-O-O {[%clk 0:03:00]}  Nf6 {[%clk 0:02:51]} 10. exf5 {[%clk 0:02:56]}  gxf5 {[%clk 0:02:51]} 11. Bd3 {[%clk 0:02:56]}  c6 {[%clk 0:02:44]} 12. Nge2 {[%clk 0:02:49]}  cxd5 {[%clk 0:02:38]} 13. cxd5 {[%clk 0:02:49]}  a6 {[%clk 0:02:33]} 14. h3 {[%clk 0:02:47]}  b5 {[%clk 0:02:31]} 15. g4 {[%clk 0:02:47]}  f4 {[%clk 0:02:21]} 16. Bf2 {[%clk 0:02:46]}  Bb7 {[%clk 0:02:16]} 17. Kb1 {[%clk 0:02:09]}  Qa5 {[%clk 0:02:06]} 18. Ne4 {[%clk 0:01:57]}  Qxd2 {[%clk 0:02:03]} 19. Nxf6+ {[%clk 0:01:49]}  Bxf6 {[%clk 0:01:59]} 20. Rxd2 {[%clk 0:01:49]}  Nd7 {[%clk 0:01:53]} 21. Nc3 {[%clk 0:01:45]}  b4 {[%clk 0:01:40]} 22. Ne4 {[%clk 0:01:44]}  Be7 {[%clk 0:01:30]} 23. Rc1 {[%clk 0:01:37]}  Rac8 {[%clk 0:01:19]} 24. Rdc2 {[%clk 0:01:37]}  Rxc2 {[%clk 0:01:15]} 25. Rxc2 {[%clk 0:01:37]}  Bxd5 {[%clk 0:01:12]} 26. Rc7 {[%clk 0:01:33]}  Be6 {[%clk 0:01:00]} 27. Bxa6 {[%clk 0:01:29]}  d5 {[%clk 0:00:57]} 28. Nd2 {[%clk 0:00:48]}  Kf7 {[%clk 0:00:12]} 29. Bb5 {[%clk 0:00:44]}  Rd8 {[%clk 0:00:08]} 30. Ra7 {[%clk 0:00:40]}  Bd6 {[%clk 0:00:06]} 31. Ra6 {[%clk 0:00:36]}  Ke7 {[%clk 0:00:06]} 32. Ra7 {[%clk 0:00:34]}  Rb8 {[%clk 0:00:04]} 33. Bd3 {[%clk 0:00:31]}  Rc8 {[%clk 0:00:03]} 34. Bxh7 {[%clk 0:00:31]}  Bc5 {[%clk 0:00:03]} 35. Bxc5+ {[%clk 0:00:30]}  Rxc5 {[%clk 0:00:03]} 36. Bd3 {[%clk 0:00:29]}  Kd6 {[%clk 0:00:02]} 37. h4 {[%clk 0:00:27]}  d4 {[%clk 0:00:02]} 38. Ne4+ {[%clk 0:00:26]}  Kd5 {[%clk 0:00:01]} 39. Nxc5 {[%clk 0:00:26]}  Nxc5 {[%clk 0:00:02]} 40. Kc2 {[%clk 0:00:24]}  b3+ {[%clk 0:00:02]} 41. axb3 {[%clk 0:00:23]}  Kd6 {[%clk 0:00:01]} 42. b4 {[%clk 0:00:23]}  Bb3+ {[%clk 0:00:01]} 43. Kd2 {[%clk 0:00:23]} 1-0


[Site "https://www.chess.com"]

[Event "Titled Tuesday Blitz April 18 Early 2023"]
[White "Estrada Nieto, Julian"]
[Black "Thomas, Anysia"]
[WhiteFideId "5101018"]
[BlackFideId "670472"]
[WhiteElo "2161"]
[BlackElo "2091"]
[Result "1-0"]
[Round "08"]
[TimeControl "180+2"]
[Date "2023.04.18"]
[WhiteClock "0:00:44"]
[BlackClock "0:00:02"]

1. e4 {[%clk 0:03:00]}  c5 {[%clk 0:02:54]} 2. Nf3 {[%clk 0:03:00]}  g6 {[%clk 0:02:53]} 3. c3 {[%clk 0:02:59]}  d5 {[%clk 0:02:52]} 4. e5 {[%clk 0:02:59]}  d4 {[%clk 0:02:43]} 5. Bc4 {[%clk 0:02:56]}  Nc6 {[%clk 0:02:39]} 6. O-O {[%clk 0:02:54]}  Bg7 {[%clk 0:02:39]} 7. cxd4 {[%clk 0:02:53]}  cxd4 {[%clk 0:02:39]} 8. Re1 {[%clk 0:02:50]}  Nh6 {[%clk 0:02:32]} 9. d3 {[%clk 0:02:50]}  O-O {[%clk 0:02:17]} 10. Bf4 {[%clk 0:02:43]}  e6 {[%clk 0:01:56]} 11. h3 {[%clk 0:02:40]}  Nf5 {[%clk 0:01:56]} 12. Nbd2 {[%clk 0:02:36]}  Na5 {[%clk 0:01:54]} 13. Ne4 {[%clk 0:02:29]}  b6 {[%clk 0:01:31]} 14. Qd2 {[%clk 0:02:10]}  Bb7 {[%clk 0:01:29]} 15. Bg5 {[%clk 0:01:59]}  Qc8 {[%clk 0:00:53]} 16. Rac1 {[%clk 0:01:55]}  Nxc4 {[%clk 0:00:47]} 17. Rxc4 {[%clk 0:01:52]}  Qb8 {[%clk 0:00:36]} 18. g4 {[%clk 0:01:40]}  Bxe4 {[%clk 0:00:36]} 19. dxe4 {[%clk 0:01:37]}  b5 {[%clk 0:00:13]} 20. Rcc1 {[%clk 0:01:33]}  h6 {[%clk 0:00:09]} 21. exf5 {[%clk 0:01:22]}  hxg5 {[%clk 0:00:06]} 22. f6 {[%clk 0:01:20]}  Bh8 {[%clk 0:00:06]} 23. Qxg5 {[%clk 0:01:16]}  Qb7 {[%clk 0:00:06]} 24. Nxd4 {[%clk 0:01:00]}  Rfd8 {[%clk 0:00:05]} 25. Nc6 {[%clk 0:00:50]}  Rd7 {[%clk 0:00:03]} 26. Ne7+ {[%clk 0:00:50]}  Rxe7 {[%clk 0:00:03]} 27. fxe7 {[%clk 0:00:50]}  Re8 {[%clk 0:00:03]} 28. Red1 {[%clk 0:00:45]}  Rxe7 {[%clk 0:00:02]} 29. Rd8+ {[%clk 0:00:44]}  Kg7 {[%clk 0:00:02]} 30. Qf6+ {[%clk 0:00:44]} 1-0


[Site "https://www.chess.com"]